bitfinex/quotes_BTCUSD_20250607
["timestamp","ask_amount","ask_price","bid_price","bid_amount"]
[1749309064410,5.25759456,105610.0,105600.0,0.29075722]
[1749309064619,5.25759457,105610.0,105600.0,0.58007722]
[1749309064829,5.23319611,105610.0,105600.0,0.58007722]
[1749309065038,5.25759466,105610.0,105600.0,0.58007722]
[1749309065244,5.66178009,105610.0,105600.0,0.58007722]
[1749309065459,5.66178009,105610.0,105600.0,0.28987722]
[1749309065719,5.66178026,105610.0,105600.0,0.28987722]
[1749309065924,5.66178084,105610.0,105600.0,0.28987722]
[1749309066140,5.63738154,105610.0,105600.0,0.28987722]
[1749309066366,5.66178093,105610.0,105600.0,0.28987722]
[1749309066800,5.66178093,105610.0,105600.0,0.28999722]
[1749309067455,5.66178093,105610.0,105600.0,0.00055722]
[1749309067694,5.64403654,105610.0,105600.0,0.29007722]
[1749309067909,5.63738154,105610.0,105600.0,0.00055722]
[1749309068123,5.65512833,105610.0,105600.0,0.00055722]
[1749309068392,5.69017631,105610.0,105600.0,0.00055722]
[1749309068603,5.69017498,105610.0,105600.0,0.00055722]
[1749309068817,5.7279453,105610.0,105600.0,0.00055722]
[1749309069037,5.69017498,105610.0,105600.0,0.00055722]
[1749309069254,5.67257688,105610.0,105600.0,0.00055722]
[1749309069470,5.69032299,105610.0,105600.0,0.00055722]
[1749309069689,5.69032318,105610.0,105600.0,0.00055722]
[1749309069901,5.67257754,105610.0,105600.0,0.00055722]
[1749309070108,5.68366847,105610.0,105600.0,0.00055722]
[1749309070315,5.69032302,105610.0,105600.0,0.00055722]
[1749309070531,5.70068297,105610.0,105600.0,0.00055722]
[1749309070739,5.70068312,105610.0,105600.0,0.00055722]
[1749309070977,5.71522397,105610.0,105600.0,0.00055722]
[1749309071187,5.80678457,105610.0,105600.0,0.00055722]
[1749309071401,5.91891756,105610.0,105600.0,0.00055722]
[1749309071611,6.00090224,105610.0,105600.0,0.00055722]
[1749309071826,5.98753613,105610.0,105600.0,0.00055722]
[1749309072536,5.95760211,105610.0,105600.0,0.00055722]
[1749309072765,6.02530586,105610.0,105600.0,0.00055722]
[1749309072974,6.00758992,105610.0,105600.0,0.00055722]
[1749309073184,6.0253051,105610.0,105600.0,0.00055722]
[1749309073390,5.97530483,105610.0,105600.0,0.00055722]
[1749309073611,5.96866161,105610.0,105600.0,0.00055722]
[1749309073820,5.97530488,105610.0,105600.0,0.00055722]
[1749309074250,5.97530481,105610.0,105600.0,0.00055722]
[1749309074684,5.96866156,105610.0,105600.0,0.00055722]
[1749309074905,5.97530456,105610.0,105600.0,0.00055722]
[1749309075117,5.95758963,105610.0,105600.0,0.00055722]
[1749309075353,5.96866161,105610.0,105600.0,0.00055722]
[1749309075568,5.97530479,105610.0,105600.0,0.00055722]
[1749309075995,5.97529963,105610.0,105600.0,0.00055722]
[1749309076215,1.85048288,105610.0,105600.0,0.00055722]
[1749309076426,5.9752859,105610.0,105600.0,0.00055722]
[1749309076652,5.91206332,105610.0,105600.0,0.00055722]
[1749309076865,5.91870134,105610.0,105600.0,0.00055722]
[1749309077346,6.01847134,105610.0,105600.0,0.00055722]
[1749309077829,6.0467985,105610.0,105600.0,0.00055722]
[1749309078101,6.04016087,105610.0,105600.0,0.00055722]
[1749309078322,0.54837216,105580.0,105570.0,0.36659581]
[1749309078548,1.04884914,105580.0,105570.0,0.36659581]
[1749309078977,5.19135217,105580.0,105570.0,0.07563581]
[1749309079195,5.19135231,105580.0,105570.0,0.07563581]
[1749309079405,5.22485231,105580.0,105570.0,0.07963581]
[1749309079619,5.22484677,105580.0,105570.0,0.004]
[1749309079838,5.20715214,105580.0,105570.0,0.004]
[1749309080078,5.22484679,105580.0,105570.0,0.004]
[1749309080289,0.19891995,105570.0,105560.0,0.5814]
[1749309080512,1.03939693,105570.0,105560.0,0.58149083]
[1749309080721,1.05709164,105570.0,105560.0,0.58149083]
[1749309080928,1.05709165,105570.0,105560.0,0.58149083]
[1749309081207,1.46116915,105570.0,105560.0,0.58141083]
[1749309081413,1.44347443,105570.0,105560.0,0.58141083]
[1749309081625,1.46116952,105570.0,105560.0,0.58141083]
[1749309081862,1.44347443,105570.0,105560.0,0.29029083]
[1749309082078,1.44347443,105570.0,105560.0,9.083e-05]
[1749309082302,5.56827743,105570.0,105560.0,9.083e-05]
[1749309082525,5.585974,105570.0,105560.0,9.083e-05]
[1749309082750,5.585974,105570.0,105560.0,0.00209083]
[1749309083217,5.56827743,105570.0,105560.0,0.00209083]
[1749309083446,4.76012243,105570.0,105560.0,0.00209083]
[1749309083682,5.58596997,105570.0,105560.0,0.00209083]
[1749309084526,5.58596969,105570.0,105560.0,0.00209083]
[1749309084941,5.56827743,105570.0,105560.0,0.00209083]
[1749309085146,4.77781228,105570.0,105560.0,0.00209083]
[1749309085359,5.1818898,105570.0,105560.0,0.00209083]
[1749309085866,4.7778123,105570.0,105560.0,0.00209083]
[1749309086074,5.1818898,105570.0,105560.0,0.00209083]
[1749309086483,5.18188905,105570.0,105560.0,0.03329083]
[1749309086693,0.63531943,105570.0,105560.0,0.03329083]
[1749309089835,1.03939693,105570.0,105560.0,0.03329083]
[1749309090033,1.05709807,105570.0,105560.0,0.03329083]
[1749309090241,1.05709814,105570.0,105560.0,0.03329083]
[1749309090442,1.03939693,105570.0,105560.0,0.03329083]
[1749309090654,1.05709837,105570.0,105560.0,0.03329083]
[1749309091607,1.05710021,105570.0,105560.0,0.03329083]
[1749309091833,1.05711082,105570.0,105560.0,0.03329083]
[1749309092040,1.05711082,105570.0,105560.0,0.32349083]
[1749309093071,1.05711309,105570.0,105560.0,0.32349083]
[1749309093279,1.05584033,105570.0,105560.0,0.32349083]
[1749309093922,0.65176283,105570.0,105560.0,0.32349083]
[1749309094130,1.03812417,105570.0,105560.0,0.32349083]
[1749309094340,1.05584033,105570.0,105560.0,0.32349083]
[1749309095265,1.05584025,105570.0,105560.0,0.32349083]
[1749309095472,1.05585576,105570.0,105560.0,0.32349083]
[1749309095679,0.65177814,105570.0,105560.0,0.33235668]
[1749309095887,0.65177812,105570.0,105560.0,0.32349083]
[1749309096095,0.65177812,105570.0,105560.0,0.33235668]
[1749309096096,0.6517781,105570.0,105560.0,0.33235668]
[1749309096930,0.63404667,105570.0,105560.0,0.32349083]
[1749309097137,0.65177994,105570.0,105560.0,0.33235769]
[1749309097547,0.65177994,105570.0,105560.0,0.32349083]
[1749309097548,0.65178012,105570.0,105560.0,0.32349083]
[1749309097700,0.65178012,105570.0,105560.0,0.33235769]
[1749309098321,0.65844042,105570.0,105560.0,0.33235769]
[1749309098501,0.65178012,105570.0,105560.0,0.42209075]
[1749309098703,0.65844035,105570.0,105560.0,0.42209075]
[1749309098930,0.64070724,105570.0,105560.0,0.41321083]
[1749309099132,0.64070724,105570.0,105560.0,0.42209096]
[1749309099296,0.6518082,105570.0,105560.0,0.42209096]
[1749309099495,0.65846877,105570.0,105560.0,0.42209096]
[1749309100171,0.6518082,105570.0,105560.0,0.42209096]
[1749309100380,0.65846877,105570.0,105560.0,0.41321083]
[1749309100608,0.64070724,105570.0,105560.0,0.41321083]
[1749309100809,0.63404667,105570.0,105560.0,0.42209086]
[1749309101026,0.65846866,105570.0,105560.0,0.42209083]
[1749309101173,0.65846862,105570.0,105560.0,0.42209082]
[1749309101591,0.65846858,105570.0,105560.0,0.42209082]
[1749309102168,0.6407072,105570.0,105560.0,0.42209134]
[1749309102377,0.63404667,105570.0,105560.0,0.41321083]
[1749309102584,0.65847012,105570.0,105560.0,0.42209134]
[1749309102794,0.63404667,105570.0,105560.0,0.41321083]
[1749309102997,0.6584699,105570.0,105560.0,0.42209115]
[1749309103609,0.64070753,105570.0,105560.0,0.4220911]
[1749309103892,0.65846972,105570.0,105560.0,0.4220911]
[1749309104099,0.65180786,105570.0,105560.0,0.41321083]
[1749309104309,0.65180768,105570.0,105560.0,0.4220897]
[1749309104511,0.63404667,105570.0,105560.0,0.42208968]
[1749309104720,0.65180778,105570.0,105560.0,0.42208964]
[1749309104942,0.66794054,105570.0,105560.0,0.61155534]
[1749309105148,0.38617708,105570.0,105560.0,1.03517279]
[1749309105362,0.58509641,105570.0,105560.0,1.02570014]
[1749309105570,0.58509641,105570.0,105560.0,0.62162264]
[1749309105571,0.57562483,105570.0,105560.0,0.62162264]
[1749309105778,0.55786372,105570.0,105560.0,0.62162264]
[1749309106000,0.57562387,105570.0,105560.0,0.62162264]
[1749309106204,0.55786372,105570.0,105560.0,0.62162264]
[1749309106677,0.54839188,105570.0,105560.0,0.62162264]
[1749309106888,0.56615218,105570.0,105560.0,0.62162264]
[1749309107087,0.54839188,105570.0,105560.0,0.62162264]
[1749309107301,0.56615218,105570.0,105560.0,0.62162264]
[1749309107718,0.54839188,105570.0,105560.0,0.62162264]
[1749309107933,0.56615218,105570.0,105560.0,0.62162264]
[1749309108140,0.53891995,105570.0,105560.0,0.61214972]
[1749309108345,0.5566703,105570.0,105560.0,0.62162282]
[1749309108966,0.53891995,105570.0,105560.0,0.62162282]
[1749309109177,0.55667029,105570.0,105560.0,0.62162282]
[1749309109379,0.55666899,105570.0,105560.0,0.62162282]
[1749309109580,0.53891995,105570.0,105560.0,0.62162282]
[1749309109999,0.55666899,105570.0,105560.0,0.62162282]
[1749309110572,0.55666899,105570.0,105560.0,0.63109574]
[1749309110883,0.53891995,105570.0,105560.0,0.63109574]
[1749309111088,0.55666413,105570.0,105560.0,0.63109574]
[1749309111304,0.53891995,105570.0,105560.0,0.63109574]
[1749309111739,0.55666413,105570.0,105560.0,0.62162282]
[1749309112562,0.55666143,105570.0,105560.0,0.62162282]
[1749309112779,0.55666121,105570.0,105560.0,0.62162282]
[1749309113024,0.55666121,105570.0,105560.0,0.93180857]
[1749309113238,0.35894413,105570.0,105560.0,0.93180857]
[1749309113447,0.56733655,105570.0,105560.0,0.93180857]
[1749309113679,0.39563006,105570.0,105560.0,0.93180857]
[1749309113914,0.0284158,105570.0,105560.0,1.34535872]
[1749309114379,0.0189436,105570.0,105560.0,1.34535872]
[1749309114593,0.02841571,105570.0,105560.0,1.34535872]
[1749309115241,0.02841562,105570.0,105560.0,1.74535872]
[1749309115686,0.03788782,105570.0,105560.0,1.74535872]
[1749309116389,0.02841562,105570.0,105560.0,1.74535872]
[1749309116603,0.03788773,105570.0,105560.0,1.74535872]
[1749309117023,0.02841562,105570.0,105560.0,1.74535872]
[1749309117696,0.21663877,105580.0,105560.0,1.31286192]
[1749309117959,0.57557678,105580.0,105570.0,0.23041995]
[1749309118178,0.35894199,105580.0,105570.0,0.23989206]
[1749309118409,0.37788488,105580.0,105570.0,0.2493639]
[1749309118619,0.39561751,105580.0,105570.0,0.2493639]
[1749309118833,0.39661751,105580.0,105570.0,0.2493639]
[1749309119082,0.37888488,105580.0,105570.0,0.25883565]
[1749309119339,0.39561739,105580.0,105570.0,0.5395639]
[1749309120076,0.39561474,105580.0,105570.0,0.5395639]
[1749309120266,0.37888488,105580.0,105570.0,0.54903565]
[1749309120721,0.37988488,105580.0,105570.0,0.5395639]
[1749309120934,0.342,105580.0,105570.0,0.95311315]
[1749309121137,0.37041276,105580.0,105570.0,0.95311315]
[1749309121343,0.36094163,105580.0,105570.0,0.95311315]
[1749309121559,0.37041276,105580.0,105570.0,0.95311315]
[1749309121764,0.36094163,105580.0,105570.0,0.95311315]
[1749309121973,0.36941276,105580.0,105570.0,0.96268288]
[1749309122142,0.35894163,105580.0,105570.0,0.96368288]
[1749309122554,0.36841276,105580.0,105570.0,1.36368288]
[1749309122917,0.36841276,105580.0,105570.0,1.35411315]
[1749309123124,0.37788407,105580.0,105570.0,1.35411315]
[1749309123560,0.37788407,105580.0,105570.0,1.35511315]
[1749309123781,0.35894163,105580.0,105570.0,1.35511315]
[1749309124200,0.35894154,105580.0,105570.0,1.35511315]
[1749309124401,0.34947068,105580.0,105570.0,1.36443528]
[1749309124829,0.35894154,105580.0,105570.0,1.36443528]
[1749309125267,0.36841258,105580.0,105570.0,1.36443528]
[1749309126167,0.37788389,105580.0,105570.0,1.35511315]
[1749309126395,0.37788389,105580.0,105570.0,1.24311565]
[1749309126608,0.3778838,105580.0,105570.0,1.24311565]
[1749309126816,0.38735511,105580.0,105570.0,1.24311565]
[1749309127246,0.38735511,105580.0,105570.0,1.33303565]
[1749309128373,0.38735511,105580.0,105570.0,0.93303565]
[1749309128591,0.38735511,105580.0,105570.0,0.93340762]
[1749309128823,0.38735583,105580.0,105570.0,1.33340762]
[1749309129347,0.38735583,105580.0,105570.0,0.93340762]
[1749309129782,0.38735583,105580.0,105570.0,1.33340762]
[1749309131241,0.36841312,105580.0,105570.0,1.33340762]
[1749309131460,0.00947032,105590.0,105580.0,0.24864347]
[1749309131681,0.36841087,105590.0,105580.0,0.24864347]
[1749309131897,0.38614531,105590.0,105580.0,0.66219183]
[1749309132106,0.35893965,105590.0,105580.0,0.66219183]
[1749309132318,0.38614451,105590.0,105580.0,0.25811433]
[1749309132531,0.3684097,105590.0,105580.0,0.95239183]
[1749309132754,0.39561456,105590.0,105580.0,0.95439183]
[1749309132959,0.37787993,105590.0,105580.0,0.95439183]
[1749309133170,0.3684097,105590.0,105580.0,0.95439183]
[1749309133380,0.37787993,105590.0,105580.0,0.95739183]
[1749309133595,0.3684097,105590.0,105580.0,0.95739183]
[1749309133818,0.38735016,105590.0,105580.0,0.95739183]
[1749309134225,0.38735016,105590.0,105580.0,0.55331433]
[1749309134649,0.34,105590.0,105580.0,0.55331433]
[1749309134863,0.05511864,105600.0,105590.0,0.25042256]
[1749309135077,0.40458765,105600.0,105590.0,1.03706006]
[1749309135287,0.39633033,105600.0,105590.0,1.03706006]
[1749309135505,0.59519395,105600.0,105590.0,0.63298274]
[1749309135721,0.41405187,105600.0,105590.0,0.6424527]
[1749309135931,0.40579993,105600.0,105590.0,0.6424527]
[1749309136140,0.59397749,105600.0,105590.0,0.61404237]
[1749309136356,0.59397749,105600.0,105590.0,0.62451278]
[1749309136570,0.59397749,105600.0,105590.0,1.3241831]
[1749309136781,0.59397749,105600.0,105590.0,1.31471278]
[1749309136997,0.58450798,105600.0,105590.0,1.31471278]
[1749309137245,0.58450803,105600.0,105590.0,1.33365333]
[1749309137454,0.58450803,105600.0,105590.0,1.3241831]
[1749309137948,0.56678641,105600.0,105590.0,1.3241831]
[1749309138153,0.58450835,105600.0,105590.0,1.3241831]
[1749309138803,0.58450835,105600.0,105590.0,1.31471278]
[1749309139015,0.57503875,105600.0,105590.0,1.31471278]
[1749309139219,0.57503462,105600.0,105590.0,1.31471278]
[1749309139432,0.57503462,105600.0,105590.0,1.30524237]
[1749309139851,0.55731681,105600.0,105590.0,1.30524237]
[1749309140082,0.57503461,105600.0,105590.0,1.31471269]
[1749309140335,0.57503461,105600.0,105590.0,1.30524237]
[1749309141205,0.55731681,105600.0,105590.0,1.30524237]
[1749309141860,0.57503646,105600.0,105590.0,1.30524237]
[1749309142090,0.57503646,105600.0,105590.0,1.30524246]
[1749309142303,0.57503542,105600.0,105590.0,1.30524246]
[1749309142525,0.57503542,105600.0,105590.0,1.31471296]
[1749309142752,0.57503901,105600.0,105590.0,1.33365351]
[1749309142944,0.55731681,105600.0,105590.0,1.32418337]
[1749309143199,0.39511398,105600.0,105590.0,1.34312356]
[1749309143420,0.41405267,105600.0,105590.0,1.34312356]
[1749309143665,0.01845319,105600.0,105590.0,1.74757302]
[1749309143902,0.01845319,105600.0,105590.0,1.8439725]
[1749309144118,0.01845319,105600.0,105590.0,1.85851335]
[1749309144349,0.01845319,105600.0,105590.0,1.85851334]
[1749309144885,0.01845319,105600.0,105590.0,1.45643584]
[1749309145095,0.01845319,105600.0,105590.0,1.88920471]
[1749309145327,0.01845319,105600.0,105590.0,1.48312721]
[1749309145550,0.01945319,105600.0,105590.0,1.89220471]
[1749309145777,0.01945319,105600.0,105590.0,1.89120471]
[1749309146228,0.01945319,105600.0,105590.0,1.89320471]
[1749309146689,0.04786064,105600.0,105590.0,1.43076241]
[1749309146909,0.03839122,105600.0,105590.0,1.35565542]
[1749309147133,0.04886064,105600.0,105590.0,1.32305542]
[1749309147375,0.04886055,105600.0,105590.0,1.32305542]
[1749309148249,0.03939122,105600.0,105590.0,1.32305542]
[1749309148528,0.03939113,105600.0,105590.0,1.33915542]
[1749309148718,0.05832979,105600.0,105590.0,1.75843292]
[1749309148971,0.04886037,105600.0,105590.0,1.75843292]
[1749309149430,0.0583297,105600.0,105590.0,1.75843292]
[1749309149637,0.03939113,105600.0,105590.0,1.75843292]
[1749309149856,0.04886037,105600.0,105590.0,1.35435542]
[1749309150957,0.02992207,105600.0,105590.0,1.35435542]
[1749309151174,0.03939122,105600.0,105590.0,1.75843292]
[1749309151622,0.02045319,105600.0,105590.0,1.75843292]
[1749309152532,0.02045319,105600.0,105590.0,1.75843291]
[1749309153179,0.02045319,105600.0,105590.0,1.35435541]
[1749309153435,0.02045319,105600.0,105590.0,1.75843291]
[1749309155991,0.02045319,105600.0,105590.0,1.05879541]
[1749309156212,0.02992216,105600.0,105590.0,1.35519541]
[1749309156428,0.02992216,105600.0,105590.0,1.75927291]
[1749309156728,0.02045319,105600.0,105590.0,1.75927291]
[1749309156944,0.02992216,105600.0,105590.0,1.75927291]
[1749309157162,0.05833042,105600.0,105590.0,1.01802545]
[1749309157406,0.03939131,105600.0,105590.0,1.32421541]
[1749309157612,0.04886073,105600.0,105590.0,1.32421541]
[1749309157820,0.04886073,105600.0,105590.0,1.32421487]
[1749309158035,0.05833024,105600.0,105590.0,1.32421487]
[1749309159090,0.04886073,105600.0,105590.0,1.32421487]
[1749309159307,0.23825466,105600.0,105590.0,0.91856615]
[1749309159522,0.60008623,105600.0,105590.0,0.70074323]
[1749309159736,0.60008623,105600.0,105590.0,1.2985361]
[1749309159962,0.6178011,105600.0,105590.0,1.2985361]
[1749309160169,0.61780404,105600.0,105590.0,1.2985361]
[1749309160376,0.61780404,105600.0,105590.0,1.30800642]
[1749309161233,0.60008623,105600.0,105590.0,1.30800642]
[1749309161449,0.60210404,105600.0,105590.0,0.9090961]
[1749309161660,0.61780404,105600.0,105590.0,1.29849619]
[1749309161869,0.61780406,105600.0,105590.0,1.3079666]
[1749309162084,0.61780404,105600.0,105590.0,1.3079666]
[1749309162312,0.60008623,105600.0,105590.0,1.3079666]
[1749309162518,0.61780404,105600.0,105590.0,1.3079666]
[1749309162725,0.60008623,105600.0,105590.0,1.3079666]
[1749309162962,0.61780404,105600.0,105590.0,1.3079666]
[1749309164115,0.61780404,105600.0,105590.0,1.31743683]
[1749309164329,0.61780713,105600.0,105590.0,1.31743683]
[1749309165001,0.61780713,105600.0,105590.0,1.3079666]
[1749309165217,0.61780713,105600.0,105590.0,1.31743692]
[1749309166052,0.61780593,105600.0,105590.0,1.31743692]
[1749309166269,0.61780593,105600.0,105590.0,1.32690715]
[1749309166489,0.60008623,105600.0,105590.0,1.32690715]
[1749309166713,0.61780593,105600.0,105590.0,1.32690715]
[1749309167347,0.61780574,105600.0,105590.0,1.32690715]
[1749309167586,0.61780579,105600.0,105590.0,1.31743692]
[1749309167798,0.60008623,105600.0,105590.0,1.31743692]
[1749309168445,0.59886893,105600.0,105590.0,0.79346323]
[1749309168683,1.00294643,105600.0,105590.0,1.08962323]
[1749309168908,0.59886893,105600.0,105590.0,1.08962323]
[1749309169128,0.59886691,105600.0,105590.0,1.29797619]
[1749309170042,0.59886691,105600.0,105590.0,1.08962323]
[1749309170475,0.58114712,105600.0,105590.0,1.08962323]
[1749309170700,0.58114712,105600.0,105590.0,1.09909382]
[1749309170914,0.59886691,105600.0,105590.0,1.09909382]
[1749309171393,0.58114712,105600.0,105590.0,1.09909382]
[1749309171608,0.59886691,105600.0,105590.0,1.08962322]
[1749309171815,0.58114712,105600.0,105590.0,1.08962322]
[1749309172037,0.59886691,105600.0,105590.0,1.09909381]
[1749309172253,0.5988653,105600.0,105590.0,1.09909381]
[1749309172803,0.5988653,105600.0,105590.0,1.29797618]
[1749309173223,0.58114712,105600.0,105590.0,1.29797618]
[1749309173432,0.59886723,105600.0,105590.0,1.29297618]
[1749309174253,0.58316723,105600.0,105590.0,1.29297618]
[1749309174663,0.56544712,105600.0,105590.0,1.29297618]
[1749309174883,0.58316912,105600.0,105590.0,1.29297618]
[1749309175082,0.56544712,105600.0,105590.0,1.29297618]
[1749309175322,0.58316912,105600.0,105590.0,1.09409381]
[1749309175720,0.58318724,105600.0,105590.0,1.09409381]
[1749309176349,0.55931681,105600.0,105590.0,1.29297618]
[1749309176554,0.57705683,105600.0,105590.0,1.29505618]
[1749309176695,0.57705702,105600.0,105590.0,1.29505618]
[1749309176897,0.59315702,105600.0,105590.0,1.29505618]
[1749309177124,0.57541681,105600.0,105590.0,1.29505618]
[1749309177329,0.57705881,105600.0,105590.0,1.29505618]
[1749309177894,0.57705873,105600.0,105590.0,1.29505618]
[1749309178097,0.57705881,105600.0,105590.0,1.29505618]
[1749309178310,0.57705842,105600.0,105590.0,1.29505618]
[1749309178668,0.55931681,105600.0,105590.0,1.29505618]
[1749309178869,0.57705851,105600.0,105590.0,1.29505618]
[1749309179110,0.55931681,105600.0,105590.0,1.29505618]
[1749309179640,0.57706125,105600.0,105590.0,1.29505618]
[1749309179779,0.57706162,105600.0,105590.0,1.29505618]
[1749309180190,0.55931681,105600.0,105590.0,1.29505618]
[1749309180595,0.57706162,105600.0,105590.0,1.29505618]
[1749309180821,0.55931681,105600.0,105590.0,1.29505618]
[1749309181034,0.57706162,105600.0,105590.0,1.29505618]
[1749309182165,0.57571681,105600.0,105590.0,1.29505618]
[1749309182368,0.58399342,105600.0,105590.0,1.08670322]
[1749309182609,0.59949342,105600.0,105590.0,1.08670322]
[1749309184063,0.58174712,105600.0,105590.0,1.09617381]
[1749309184277,0.59949342,105600.0,105590.0,1.09617381]
[1749309185144,0.59949463,105600.0,105590.0,1.09617381]
[1749309185351,0.59949463,105600.0,105590.0,1.09569381]
[1749309185761,0.59949463,105600.0,105590.0,1.08622322]
[1749309186400,0.59949463,105600.0,105590.0,0.69574322]
[1749309186618,1.09997161,105600.0,105590.0,1.08610322]
[1749309186833,1.09997161,105600.0,105590.0,0.69574322]
[1749309186834,1.10663513,105600.0,105590.0,0.69574322]
[1749309187049,1.11092921,105600.0,105590.0,0.66785003]
[1749309187259,1.11090723,105600.0,105590.0,0.40110322]
[1749309187473,1.10990723,105600.0,105590.0,0.39610322]
[1749309187692,1.09215089,105600.0,105590.0,0.39610322]
[1749309187927,0.70582211,105600.0,105590.0,0.39310322]
[1749309188138,1.10889965,105600.0,105590.0,0.39310322]
[1749309188351,1.09115091,105600.0,105590.0,0.39510322]
[1749309188563,1.10889966,105600.0,105590.0,0.39510322]
[1749309188762,1.10889969,105600.0,105590.0,0.39510322]
[1749309189002,1.09115091,105600.0,105590.0,0.39514322]
[1749309189206,1.51297717,105600.0,105590.0,0.39514322]
[1749309189418,1.51297725,105600.0,105590.0,0.39514322]
[1749309189629,1.49522842,105600.0,105590.0,0.39514322]
[1749309189880,1.1089003,105600.0,105590.0,0.39514322]
[1749309190322,1.1088993,105600.0,105590.0,0.39514322]
[1749309190746,5.72752312,105600.0,105590.0,0.00454322]
[1749309190958,5.72751326,105600.0,105590.0,0.30242322]
[1749309191172,5.63776551,105600.0,105590.0,0.30242322]
[1749309191373,5.61337565,105600.0,105590.0,0.30242322]
[1749309191578,5.61337565,105600.0,105590.0,0.30042322]
[1749309191579,5.63111318,105600.0,105590.0,0.30042322]
[1749309191793,5.63111315,105600.0,105590.0,0.30142322]
[1749309192011,5.63776471,105600.0,105590.0,0.30142322]
[1749309192224,5.63776471,105600.0,105590.0,0.00154322]
[1749309192436,5.63776438,105600.0,105590.0,0.30038322]
[1749309192646,5.63776375,105600.0,105590.0,0.30038322]
[1749309192882,5.63776367,105600.0,105590.0,0.30038322]
[1749309193088,5.61337565,105600.0,105590.0,0.00254322]
[1749309193539,5.63776148,105600.0,105590.0,0.30030322]
[1749309194050,5.63776148,105600.0,105590.0,0.00254322]
[1749309194260,5.71276763,105600.0,105590.0,0.30022322]
[1749309194481,5.73050168,105600.0,105590.0,0.30022322]
[1749309194695,5.73715192,105600.0,105590.0,0.30022322]
[1749309194915,5.71941789,105600.0,105590.0,0.30022322]
[1749309195124,5.76592986,105600.0,105590.0,0.30022322]
[1749309195568,5.75927689,105600.0,105590.0,0.30022322]
[1749309195775,5.76591571,105600.0,105590.0,0.30022322]
[1749309195991,5.74157339,105600.0,105590.0,0.30022322]
[1749309196204,5.74157339,105600.0,105590.0,0.00254322]
[1749309196428,5.74821221,105600.0,105590.0,0.00254322]
[1749309196649,5.82011661,105600.0,105590.0,0.00254322]
[1749309196864,5.87011661,105600.0,105590.0,0.00254322]
[1749309197083,5.95793115,105600.0,105590.0,0.00254322]
[1749309197641,5.95792969,105600.0,105590.0,0.00254322]
[1749309197905,5.90525264,105600.0,105590.0,0.00254322]
[1749309198154,6.63122663,105600.0,105590.0,0.00254322]
[1749309198365,5.92958902,105600.0,105590.0,0.00254322]
[1749309198585,6.22707722,105600.0,105590.0,0.00254322]
[1749309198802,6.22707722,105600.0,105590.0,0.00154322]
[1749309198803,6.22703722,105600.0,105590.0,0.00154322]
[1749309199026,6.22699722,105600.0,105590.0,0.00154322]
[1749309199240,6.2289972,105600.0,105590.0,0.00054322]
[1749309199448,6.24260966,105600.0,105590.0,0.00054322]
[1749309199660,6.26028566,105600.0,105590.0,0.00054322]
[1749309199884,6.25365716,105600.0,105590.0,0.00054322]
[1749309200093,6.26028566,105600.0,105590.0,0.00054322]
[1749309200305,6.26028566,105600.0,105560.0,9.083e-05]
[1749309200306,4.70559488,105570.0,105560.0,9.083e-05]
[1749309200520,5.62782535,105570.0,105560.0,0.29745083]
[1749309200736,5.63445346,105570.0,105560.0,0.69745083]
[1749309200956,5.62782535,105570.0,105560.0,0.69799405]
[1749309201416,5.62782535,105570.0,105560.0,0.29799405]
[1749309201632,5.63722668,105570.0,105560.0,0.29799405]
[1749309201909,5.63722668,105570.0,105560.0,0.29899405]
[1749309202350,5.63722668,105570.0,105560.0,0.00163405]
[1749309202576,5.63722668,105570.0,105560.0,0.30075405]
[1749309202577,5.64484735,105570.0,105560.0,0.30075405]
[1749309202791,5.64484428,105570.0,105560.0,0.30075405]
[1749309203015,5.63822353,105570.0,105560.0,0.30075405]
[1749309203230,5.62718916,105570.0,105560.0,0.30075405]
[1749309203439,5.63822395,105570.0,105560.0,0.30075405]
[1749309203872,5.64484478,105570.0,105560.0,0.30075405]
[1749309204084,5.6205684,105570.0,105560.0,0.30075405]
[1749309204297,5.6205684,105570.0,105560.0,0.30067405]
[1749309204298,5.63821421,105570.0,105560.0,0.30067405]
[1749309204728,5.63821398,105570.0,105560.0,0.30067405]
[1749309204940,5.63821376,105570.0,105560.0,0.30067405]
[1749309205398,5.6205684,105570.0,105560.0,0.30067405]
[1749309205629,5.63821378,105570.0,105560.0,0.30067405]
[1749309206482,5.63820987,105570.0,105560.0,0.30067405]
[1749309207111,5.6205684,105570.0,105560.0,0.30067405]
[1749309207358,5.63821411,105570.0,105560.0,0.30067405]
[1749309208012,4.8124134,105570.0,105560.0,0.30067405]
[1749309208266,5.63821413,105570.0,105560.0,0.00363405]
[1749309208515,5.65275498,105570.0,105560.0,0.30055405]
[1749309208733,1.52795133,105570.0,105560.0,0.30055405]
[1749309208948,5.66432442,105570.0,105560.0,0.30055405]
[1749309209159,5.70283448,105570.0,105560.0,0.00163405]
[1749309209380,5.70945129,105570.0,105560.0,0.00163405]
[1749309209867,1.58464769,105570.0,105560.0,0.00163405]
[1749309210175,5.70945067,105570.0,105560.0,0.00063405]
[1749309210399,5.68518958,105570.0,105560.0,0.00063405]
[1749309210645,5.70283433,105570.0,105560.0,0.00063405]
[1749309210894,1.58464812,105570.0,105560.0,0.00063405]
[1749309211136,5.8058506,105570.0,105560.0,0.00063405]
[1749309211633,5.80584987,105570.0,105560.0,0.00063405]
[1749309211885,5.78820584,105570.0,105560.0,0.00063405]
[1749309212092,5.8058595,105570.0,105560.0,0.00063405]
[1749309212736,5.78158906,105570.0,105560.0,0.00063405]
[1749309212946,4.9987045,105570.0,105560.0,0.00063405]
[1749309213155,5.8068595,105570.0,105560.0,0.00063405]
[1749309213581,5.80885946,105570.0,105560.0,0.00063405]
[1749309213790,5.79120824,105570.0,105560.0,0.00063405]
[1749309214003,5.78458906,105570.0,105560.0,0.00063405]
[1749309214208,5.79121595,105570.0,105560.0,0.00063405]
[1749309214412,5.80888767,105570.0,105560.0,0.00063405]
[1749309215053,5.80888671,105570.0,105560.0,0.00063405]
[1749309215520,5.79121569,105570.0,105560.0,0.00063405]
[1749309215741,5.80888667,105570.0,105560.0,0.00063405]
[1749309215957,5.78458906,105570.0,105560.0,0.00063405]
[1749309216173,5.80226006,105570.0,105560.0,0.00045318]
[1749309216394,5.80888668,105570.0,105560.0,0.00045318]
[1749309217109,5.80888683,105570.0,105560.0,0.00045318]
[1749309217323,5.83052342,105570.0,105560.0,0.00045318]
[1749309217543,5.83715611,105570.0,105560.0,0.00045318]
[1749309218006,5.83715611,105570.0,105550.0,0.24]
[1749309218007,0.1989388,105560.0,105550.0,0.24]
[1749309218224,5.22764682,105560.0,105550.0,0.24]
[1749309218443,5.34248184,105560.0,105550.0,0.24]
[1749309218657,5.34247961,105560.0,105550.0,0.24]
[1749309219316,5.37095627,105560.0,105550.0,0.241]
[1749309219531,5.3709563,105560.0,105550.0,0.241]
[1749309219751,5.34664787,105560.0,105550.0,0.241]
[1749309219966,5.37095626,105560.0,105550.0,0.241]
[1749309221121,5.37098648,105560.0,105550.0,0.241]
[1749309221564,5.37298645,105560.0,105550.0,0.24]
[1749309221790,5.37398645,105560.0,105550.0,0.24]
[1749309222674,5.36734908,105560.0,105550.0,0.24]